bitfinex-derivatives/quotes_ETHF0:USTF0_20260203
["timestamp","ask_amount","ask_price","bid_price","bid_amount"]
[1770098904759,2.50872386,2302.6,2302.2,0.21738]
[1770098905565,7.43922519,2302.5,2301.7,5.69818461]
[1770098905863,2.50872386,2302.5,2301.7,5.69818461]
[1770098906256,4.52836483,2302.4,2301.7,5.69818461]
[1770098907164,4.52836483,2302.4,2302.2,0.21738]
[1770098907465,4.52836483,2302.4,2302.0,0.2174]
[1770098908859,0.00396791,2303.0,2301.7,2.30570055]
[1770098909061,0.00396791,2303.0,2302.2,0.21738]
[1770098909062,3.77680434,2302.9,2302.2,0.21738]
[1770098909266,4.88362892,2302.9,2302.2,0.21738]
[1770098909666,2.50872386,2302.8,2302.2,0.21738]
[1770098910064,2.50872386,2302.6,2302.2,0.21738]
[1770098910264,2.50872386,2302.6,2301.8,8.69620268]
[1770098910663,2.50872386,2302.4,2300.4,5.1867402]
[1770098910867,2.50872386,2302.2,2300.0,5.53828913]
[1770098911167,4.10072015,2302.1,2300.6,5.1867402]
[1770098911468,2.50872386,2302.6,2301.8,0.21742]
[1770098911766,2.50872386,2302.6,2301.8,0.22210279]
[1770098913063,2.50872386,2302.6,2301.9,0.21741]
[1770098914066,2.50872386,2302.6,2302.0,5.58754184]
[1770098914269,2.50872386,2302.6,2302.1,0.21739]
[1770098914569,37.987387,2304.0,2302.5,0.21735]
[1770098914769,3.77636889,2303.9,2302.5,0.21735]
[1770098914968,37.99135763,2304.1,2302.5,0.21735]
[1770098914969,4.58843185,2303.5,2302.5,0.21735]
[1770098915172,3.77636889,2303.8,2302.1,0.21739]
[1770098915173,3.77636889,2303.4,2302.1,0.21739]
[1770098915372,3.78033952,2303.3,2302.1,0.21739]
[1770098915572,3.77636889,2303.2,2302.1,0.21739]
[1770098915770,0.00397063,2303.1,2302.1,0.21739]
[1770098915974,3.77203556,2303.1,2302.1,0.21739]
[1770098916272,0.00397063,2303.0,2302.1,0.21739]
[1770098916473,7.05232564,2303.0,2302.1,0.21739]
[1770098916771,2.50872386,2302.9,2302.1,0.21739]
[1770098916968,7.54596937,2302.9,2302.1,0.21739]
[1770098917174,2.50872386,2302.8,2302.1,0.21739]
[1770098917972,2.50872386,2302.8,2302.2,5.95810302]
[1770098918373,2.50872386,2302.8,2302.2,0.21738]
[1770098919174,2.50872386,2303.2,2302.3,5.51965732]
[1770098919372,2.50872386,2303.0,2302.2,0.21738]
[1770098919873,7.03792257,2302.9,2302.2,0.21738]
[1770098920073,2.50872386,2302.9,2302.2,0.21738]
[1770098920471,2.51269449,2302.9,2302.2,0.21738]
[1770098920676,2.50872386,2302.7,2302.2,0.21738]
[1770098920872,2.51269449,2302.7,2302.2,0.21738]
[1770098921774,2.07102449,2302.7,2302.3,5.79476341]
[1770098921974,2.06705386,2302.7,2302.3,0.21737]
[1770098922269,37.987387,2304.0,2302.5,0.69564607]
[1770098922476,0.00357239,2303.9,2303.1,0.2173]
[1770098922776,4.5342922,2303.9,2303.1,3.2583]
[1770098922976,0.00357239,2303.8,2303.1,3.2583]
[1770098923277,0.00489462,2303.8,2303.1,3.2583]
[1770098923477,4.60672946,2303.7,2303.1,3.2583]
[1770098923771,2.50872386,2303.6,2303.1,3.2583]
[1770098923972,2.51229625,2303.6,2303.1,3.2583]
[1770098924477,2.51229625,2303.6,2303.3,0.21728]
[1770098924976,2.51229625,2303.6,2303.1,3.041]
[1770098927177,2.51229625,2303.6,2303.3,0.21728]
[1770098929174,2.51361848,2303.8,2303.3,0.21728]
[1770098929379,2.51229625,2303.7,2303.3,0.21728]
[1770098930372,0.00489462,2303.8,2303.3,0.21728]
[1770098931682,0.00489462,2303.8,2303.4,2.65342812]
[1770098931882,0.00489462,2303.8,2303.5,0.21726]
[1770098932081,0.00489462,2303.8,2303.5,2.65852552]
[1770098932281,2.3465865,2303.8,2303.5,0.2223674]
[1770098932482,2.3465865,2303.8,2303.1,3.041]
[1770098933285,4.62e-06,2303.8,2303.3,2.43615812]
[1770098933582,37.987387,2305.6,2304.2,0.21719]
[1770098933775,3.69340438,2305.5,2304.2,0.21719]
[1770098934075,4.57866327,2304.7,2303.7,2.65339812]
[1770098934279,1.2861713,2305.3,2303.7,2.65339812]
[1770098934280,5.06855391,2305.6,2303.7,2.65339812]
[1770098934481,4.57866327,2304.6,2304.1,2.43615812]
[1770098934682,4.57866327,2305.0,2303.8,2.43615812]
[1770098934880,0.00469055,2305.5,2303.8,2.43615812]
[1770098935077,3.66830154,2305.4,2304.2,0.21719]
[1770098935277,4.7883416,2304.9,2304.2,2.43615812]
[1770098935583,4.7883416,2305.2,2304.1,3.04]
[1770098935584,2.34638243,2305.5,2304.7,0.21715]
[1770098935987,4.76644374,2305.1,2304.7,0.21715]
[1770098936184,2.34169188,2305.2,2304.7,0.21715]
[1770098936582,2.34169188,2305.2,2304.4,2.43615812]
[1770098936583,4.76644374,2305.1,2304.8,5.56774914]
[1770098936785,2.34638243,2305.5,2304.4,2.65333812]
[1770098936982,2.34169188,2305.3,2304.4,2.65333812]
[1770098937182,2.34169188,2305.3,2304.4,0.21718]
[1770098937382,2.34169188,2305.1,2304.4,0.21718]
[1770098937783,7.24470729,2305.0,2304.4,0.21718]
[1770098938186,2.34169188,2305.0,2304.4,0.21718]
[1770098938385,2.34169188,2304.8,2304.1,3.04]
[1770098938784,4.52739882,2304.7,2304.1,3.04]
[1770098939184,2.34169188,2305.1,2304.1,5.69335812]
[1770098939581,2.34169188,2304.9,2304.1,3.2572]
[1770098939983,4.91629308,2304.8,2304.1,3.2572]
[1770098940382,4.91629308,2304.8,2304.1,5.69335812]
[1770098940584,2.34169188,2305.2,2304.1,5.69335812]
[1770098940791,4.91629308,2304.8,2304.1,5.69335812]
[1770098940991,2.34169188,2304.7,2304.1,3.2572]
[1770098941393,0.00469055,2305.5,2304.2,2.65334812]
[1770098941394,2.34169188,2305.1,2304.2,2.65334812]
[1770098941790,5.43742076,2304.3,2301.1,6.44696207]
[1770098941989,5.43742076,2304.3,2299.8,0.34057056]
[1770098941990,2.51481419,2301.5,2299.8,0.34057056]
[1770098942194,40.8,2301.5,2300.8,2.53962709]
[1770098942495,40.8,2301.5,2299.9,25.79334785]
[1770098942496,9.54639776,2301.4,2300.0,2.53962709]
[1770098942686,7.26713608,2301.3,2300.2,16.97833011]
[1770098942887,7.26713608,2301.2,2300.1,5.53848699]
[1770098943188,2.52270859,2301.0,2300.1,25.79334785]
[1770098943391,4.75232189,2300.9,2300.1,28.32902774]
[1770098943694,4.8727176,2300.9,2300.1,28.32902774]
[1770098943894,4.8727176,2301.0,2300.1,28.32902774]
[1770098944093,4.80638653,2300.9,2300.1,28.32902774]
[1770098944288,0.0078944,2301.2,2300.1,28.32902774]
[1770098944492,4.7465463,2300.8,2300.1,28.32902774]
[1770098944793,4.7465463,2301.0,2300.1,28.32902774]
[1770098944994,4.7465463,2301.0,2300.3,16.97833011]
[1770098945195,2.51980725,2301.4,2300.2,19.51401]
[1770098945491,4.73166489,2301.1,2300.3,25.79334785]
[1770098945790,4.73166489,2301.0,2300.4,2.5396271]
[1770098946196,4.57728228,2301.1,2300.5,42.77167796]
[1770098946394,0.00499306,2301.4,2300.5,25.79334785]
[1770098946595,4.57728228,2301.0,2300.5,25.79334785]
[1770098946996,0.00499306,2301.4,2300.5,42.77167796]
[1770098947196,4.5289591,2300.9,2300.5,25.79334785]
[1770098947598,84.22856065,2335.7,2300.5,16.97833011]
[1770098947797,5.24701838,2302.2,2300.5,25.79334785]
[1770098948098,4.86455091,2300.9,2300.5,25.79334785]
[1770098948299,2.51481419,2301.9,2300.5,16.97833011]
[1770098948597,4.86455091,2300.8,2300.5,25.79334785]
[1770098948799,4.86455091,2300.9,2300.5,25.79334785]
[1770098948999,4.46996562,2301.3,2300.5,25.79334785]
[1770098949200,0.02142786,2301.6,2300.5,25.79334785]
[1770098949599,4.94243964,2301.3,2300.3,2.52891316]
[1770098949799,4.92101178,2301.3,2300.4,2.52891316]
[1770098950300,4.92101178,2301.3,2300.5,25.79334785]
[1770098951101,4.92101178,2301.3,2300.5,45.30059112]
[1770098951497,4.92101178,2301.3,2300.7,16.97833011]
[1770098951702,4.92101178,2301.3,2300.7,19.50689443]
[1770098951903,4.92101178,2301.3,2300.8,19.50689443]
[1770098952102,4.92101178,2301.3,2300.8,2.52856432]
[1770098952300,4.92101178,2301.3,2300.8,19.50689443]
[1770098952505,4.92101178,2301.3,2300.4,2.52856432]
[1770098952902,4.92101178,2301.3,2300.5,16.97833011]
[1770098953498,4.92101178,2301.3,2300.7,2.51298584]
[1770098953706,4.92101178,2301.3,2300.9,2.51298584]
[1770098954202,4.92101178,2301.3,2300.9,45.2846638]
[1770098954404,4.92101178,2301.3,2300.9,42.77167796]
[1770098955103,4.92101178,2301.3,2300.9,45.28333494]
[1770098955300,2.57075442,2302.1,2301.1,19.48998709]
[1770098955502,0.05594023,2302.7,2301.4,2.51165698]
[1770098955701,4.77071402,2302.6,2301.4,2.51165698]
[1770098956007,4.86753543,2302.1,2301.5,2.51165698]
[1770098956201,4.86753543,2302.5,2301.5,28.30500483]
[1770098956507,4.68047442,2302.2,2301.6,16.97833011]
[1770098956706,4.68047442,2302.2,2301.5,28.30500483]
[1770098956707,4.68047442,2302.2,2301.7,2.51165698]
[1770098957003,4.68047442,2302.4,2302.1,2.51074303]
[1770098957307,4.7940312,2302.4,2301.8,45.28242099]
[1770098957605,4.7940312,2302.4,2301.9,19.48907314]
[1770098957799,4.7940312,2302.4,2301.8,25.79334785]
[1770098957800,4.7940312,2302.4,2302.0,19.48907314]
[1770098958208,4.7940312,2302.4,2302.1,16.97833011]
[1770098959205,2.51481419,2303.2,2302.2,2.51109511]
[1770098959401,0.05706398,2303.3,2302.2,2.51109511]
[1770098959607,4.53348363,2302.9,2302.0,4.267]
[1770098959908,4.62269092,2303.0,2302.1,25.73628387]
[1770098960208,4.62269092,2302.8,2302.1,25.73628387]
[1770098960407,0.00385823,2303.0,2302.1,25.73628387]
[1770098960608,4.62269092,2302.9,2302.1,25.73628387]
[1770098961108,4.62457327,2302.9,2302.1,25.73628387]
[1770098961308,4.62269092,2302.9,2302.1,25.73628387]
[1770098962311,4.78173389,2302.8,2302.1,25.73628387]
[1770098962509,4.62269092,2302.9,2302.1,25.73628387]
[1770098962810,4.54627821,2302.7,2302.0,6.80156825]
[1770098963012,5.02102516,2302.9,2302.1,25.73628387]
[1770098963310,5.02102516,2302.7,2302.1,25.73628387]
[1770098963515,5.02102516,2302.9,2302.0,6.80156825]
[1770098963712,4.78481698,2302.8,2302.1,25.73628387]
[1770098963913,5.02102516,2302.7,2302.2,2.5405971]
[1770098964114,0.00385823,2303.0,2302.3,2.5405971]
[1770098964305,4.5986878,2302.8,2302.4,2.5405971]
[1770098964611,0.00385823,2303.0,2302.3,25.73628387]
[1770098964812,4.5986878,2302.8,2302.3,25.73628387]
[1770098965006,4.5986878,2302.8,2302.3,28.27688097]
[1770098965212,0.00385823,2303.0,2302.3,25.73628387]
[1770098965408,5.02543552,2302.7,2302.3,25.73628387]
[1770098965712,5.02543552,2302.8,2302.3,28.27688097]
[1770098965915,0.00385823,2303.0,2302.3,45.25521108]
[1770098966113,4.73746892,2302.7,2302.3,28.27688097]
[1770098966314,4.73746892,2302.8,2302.3,28.27688097]
[1770098966514,0.00385823,2303.0,2302.4,2.5405971]
[1770098966714,4.8049778,2302.9,2302.4,2.5405971]
[1770098966915,4.73746892,2302.7,2302.4,2.5405971]
[1770098967114,4.73746892,2302.9,2302.4,19.51892721]
[1770098967314,4.94121958,2302.6,2302.4,19.51892721]
[1770098967516,4.94121958,2302.6,2302.4,2.5405971]
[1770098967718,4.94121958,2302.9,2302.5,16.97833011]
[1770098967920,4.94121958,2302.9,2302.4,2.5405971]
[1770098967921,4.92386221,2302.5,2302.4,19.51892721]
[1770098968318,4.94951365,2302.5,2302.4,19.51892721]
[1770098968720,28.20821061,2302.9,2302.4,2.5405971]
[1770098969018,4.88521983,2302.8,2302.5,28.27688097]
[1770098969420,4.88521983,2302.8,2302.3,4.358]
[1770098969620,4.88521983,2302.9,2302.4,25.73628387]
[1770098969919,5.03348661,2303.0,2302.4,25.73628387]
[1770098970119,4.79730652,2302.9,2302.4,25.73628387]
[1770098970418,9.8269349,2302.9,2302.1,2.5405971]
[1770098970619,9.8269349,2302.9,2302.2,24.72826315]
[1770098971518,5.02962838,2302.7,2302.1,2.5405971]
[1770098971714,5.02962838,2302.6,2302.1,24.72826315]
[1770098971918,9.97932004,2302.6,2302.1,24.72826315]
[1770098972321,4.94969166,2302.6,2302.1,24.72826315]
[1770098972718,5.02962838,2302.7,2302.1,24.72826315]
[1770098972918,9.56762607,2302.6,2302.1,19.32083882]
[1770098973220,5.02962838,2302.6,2302.1,19.32083882]
[1770098973619,4.89338847,2302.5,2302.1,19.32083882]
[1770098975424,4.89338847,2302.5,2301.8,2.5405971]
[1770098975626,4.89338847,2302.5,2301.9,19.32083882]
[1770098975825,4.89338847,2302.5,2302.0,2.5405971]
[1770098976227,4.89338847,2302.5,2302.2,2.5405971]
[1770098976426,4.89338847,2302.5,2301.8,19.32083882]
[1770098976929,4.89338847,2302.5,2301.9,4.4]
[1770098977129,5.03348661,2303.0,2301.9,9.95971057]
[1770098977329,0.00385823,2303.0,2302.0,16.96804745]
[1770098977524,4.6560038,2302.8,2302.0,16.96804745]
[1770098977729,4.6560038,2302.9,2302.1,16.96804745]
[1770098977929,0.00385823,2303.0,2302.1,16.96804745]
[1770098978229,4.94684761,2302.9,2302.1,16.96804745]
[1770098978429,4.94684761,2302.9,2302.2,2.3867263]
[1770098978731,4.94684761,2302.9,2302.3,4.405]
[1770098979328,4.94684761,2302.9,2302.4,19.35477375]
[1770098979930,4.94684761,2302.9,2302.5,2.3867263]
[1770098981224,4.37642412,2302.8,2302.5,2.3867263]
[1770098981427,4.37642412,2302.8,2302.3,4.405]
[1770098981428,5.02962838,2303.5,2302.3,4.405]
[1770098981627,7.56263959,2303.6,2302.4,16.96418922]
[1770098981826,4.64400272,2303.3,2302.4,22.71062457]
[1770098982026,7.18459982,2303.5,2302.4,22.71062457]
[1770098982226,4.59734561,2303.4,2302.4,22.71062457]
[1770098982526,0.00458522,2303.4,2302.4,22.71062457]
[1770098982727,4.60193083,2303.4,2302.4,22.71062457]
[1770098983532,7.14252793,2303.4,2302.4,22.71062457]
[1770098984233,2.5405971,2303.9,2302.6,2.72010167]
[1770098984430,2.5405971,2303.9,2302.7,4.42]
[1770098984630,4.81304654,2303.5,2302.7,10.00238062]
[1770098984832,4.81304654,2303.8,2302.8,16.96418922]
[1770098985031,2.5405971,2303.9,2302.8,16.96418922]
[1770098985231,2.5405971,2303.7,2302.8,16.96418922]
[1770098985634,4.6979768,2303.6,2302.8,16.96418922]
[1770098986036,4.6979768,2303.7,2302.8,16.96418922]
[1770098986235,0.00339535,2303.9,2303.0,2.72010167]
[1770098986437,0.00339535,2303.9,2303.1,4.425]
[1770098986640,4.67422837,2303.8,2303.1,27.15907027]
[1770098986839,0.00339535,2303.9,2303.1,27.15907027]
[1770098987132,2.5405971,2304.4,2303.3,0.21728]
[1770098987337,2.5405971,2304.7,2303.4,2.72010167]
[1770098987537,5.00613653,2304.3,2303.5,4.429]
[1770098987737,5.00613653,2304.6,2303.5,4.429]
[1770098987933,2.5405971,2304.8,2303.6,22.61572465]
[1770098988133,4.92811411,2304.7,2303.6,22.62096458]
[1770098988531,2.54521785,2304.8,2303.6,22.62096458]
[1770098988732,4.92811411,2304.7,2303.6,22.62096458]
[1770098989331,4.92811411,2304.7,2303.6,22.83821458]
[1770098989536,4.92811411,2304.7,2303.8,2.72010167]
[1770098989730,2.5405971,2304.6,2303.9,4.428]
[1770098990138,4.57636478,2304.5,2304.0,16.96418922]
[1770098990337,2.53918599,2304.5,2304.0,16.96418922]
[1770098990539,4.57636478,2304.6,2304.0,16.96418922]
[1770098990740,0.00462075,2304.8,2304.0,16.96418922]
[1770098990936,4.57636478,2304.7,2304.0,16.96418922]
[1770098992745,4.57636478,2304.7,2303.9,4.428]
[1770098992941,4.57636478,2304.7,2304.0,16.96418922]
[1770098996048,0.00462075,2304.8,2304.1,5.63793146]
[1770098996244,4.68857213,2304.6,2304.1,5.63793146]
[1770098996650,0.00462075,2304.8,2304.1,5.63793146]
[1770098996852,0.00462075,2304.8,2304.2,16.96418922]
[1770098997050,4.68857213,2304.5,2304.3,4.457]
[1770098997249,4.68857213,2304.7,2304.3,4.457]
[1770098997449,2.54352777,2304.8,2304.4,16.96418922]
[1770098997753,2.53890702,2304.6,2304.4,15.74218922]
[1770098998053,4.71551414,2304.5,2304.4,15.74218922]
[1770098998647,4.71551414,2304.5,2304.4,11.19335021]
[1770099000550,2.53890702,2304.4,2304.1,4.467]
[1770099000755,2.53890702,2304.4,2303.8,2.547]
[1770099000957,7.16967592,2304.3,2303.8,2.547]
[1770099001449,2.53890702,2304.3,2303.8,2.547]
[1770099001645,4.77169826,2304.2,2303.8,2.547]
[1770099003050,2.53890702,2304.1,2303.6,0.00523993]
[1770099003446,2.53890702,2303.9,2303.6,0.00523993]
[1770099003952,4.87486586,2303.8,2303.6,0.00523993]
[1770099004248,4.87486586,2303.8,2303.2,2.547]
[1770099004448,4.87486586,2303.8,2303.3,0.21728]
[1770099004653,7.28925663,2303.9,2303.3,0.21728]
[1770099004952,2.53890702,2303.9,2303.3,0.21728]
[1770099005251,7.22297473,2303.8,2303.3,0.2206701]
[1770099005753,37.79675022,2304.6,2303.3,0.2206701]
[1770099005754,2.53890702,2303.7,2303.3,0.2206701]
[1770099005949,7.22297473,2303.7,2303.3,0.2206701]
[1770099006346,4.68406771,2303.7,2303.3,0.2206701]
[1770099006947,2.53890702,2303.7,2303.3,0.2206701]
[1770099007348,4.89260539,2303.6,2303.3,0.2206701]
[1770099008147,7.38095829,2304.0,2303.3,0.2206701]
[1770099008353,2.53890702,2304.0,2303.3,0.2206701]
[1770099008757,4.84205127,2303.9,2303.3,0.2206701]
[1770099008957,7.38095829,2303.9,2303.3,0.2206701]
[1770099009257,2.53890702,2303.9,2303.3,0.2206701]
[1770099009651,42.67110433,2304.4,2303.3,0.2206701]
[1770099009652,7.41326113,2303.8,2303.3,0.2206701]
[1770099010049,2.53890702,2303.8,2303.3,0.2206701]
[1770099010455,4.79646005,2303.7,2303.3,0.2206701]
[1770099010651,7.33536707,2303.7,2303.3,0.2206701]
[1770099010853,4.79646005,2303.7,2303.3,0.2206701]
[1770099011249,3.57446005,2303.7,2303.3,0.2206701]
[1770099012258,6.11336707,2303.7,2303.3,0.2206701]
[1770099014458,3.57446005,2303.7,2303.3,0.2206701]
[1770099014964,2.53890702,2303.9,2303.3,0.2206701]
[1770099015262,4.86387134,2303.8,2303.3,0.2206701]
[1770099015763,7.40277836,2303.8,2303.3,0.2206701]
[1770099017161,4.86387134,2303.8,2303.3,0.2206701]
[1770099017563,7.40277836,2303.8,2303.3,0.2206701]
[1770099018766,2.53890702,2303.7,2303.3,0.2206701]
[1770099019460,2.53890702,2304.1,2303.3,0.2206701]
[1770099019660,6.52045116,2304.0,2303.3,0.2206701]
[1770099019959,11.13720038,2303.9,2303.3,0.2206701]
[1770099020165,7.15565624,2303.9,2303.3,0.2206701]
[1770099020461,2.53890702,2303.9,2303.3,0.2206701]
[1770099020764,7.43584404,2303.8,2303.3,0.2206701]
[1770099021065,2.54085693,2303.8,2303.3,0.2206701]
[1770099021266,7.43584404,2304.1,2303.3,0.2206701]
[1770099021466,3.98344345,2304.0,2303.3,0.2206701]
[1770099021666,3.98344345,2303.9,2303.3,0.2206701]
[1770099021966,2.54085693,2304.0,2303.3,0.2206701]
[1770099022168,2.54085693,2304.0,2303.4,0.21727]
[1770099023563,2.54085693,2304.3,2303.7,0.21724]
[1770099023762,2.54085693,2304.1,2303.7,0.21724]
[1770099024365,2.54085693,2304.3,2303.8,0.21723]
[1770099024568,6.52548587,2304.2,2303.8,0.21723]
[1770099024769,2.54085693,2304.1,2303.8,0.21723]
[1770099028072,2.52137044,2304.3,2303.3,0.2206701]
[1770099028273,2.52137044,2304.1,2303.3,0.2206701]
[1770099028475,2.52137044,2303.9,2303.3,0.0033901]
[1770099028673,2.52137044,2303.7,2303.3,0.0033901]
[1770099029369,2.51974938,2303.5,2303.3,0.0033901]
[1770099029770,2.51974938,2303.5,2302.9,3.141]
[1770099030177,2.51974938,2303.3,2302.9,3.141]
[1770099030576,2.51974938,2303.1,2302.6,0.21735]
[1770099030975,2.51974938,2303.1,2302.6,0.22293291]
[1770099031176,2.52429297,2303.1,2302.6,0.22293291]
[1770099031977,0.00454359,2303.1,2302.6,0.22293291]
[1770099032173,2.30740195,2303.1,2302.6,0.22293291]
[1770099033577,2.30740195,2303.1,2302.7,0.21733]
[1770099033778,2.30285836,2303.4,2302.7,2.17201698]
[1770099033984,2.30285836,2303.4,2302.7,0.21733]
[1770099034180,4.88989051,2303.3,2302.7,0.21733]
[1770099034877,0.0045645,2303.3,2302.8,0.21733]
[1770099035076,0.0045645,2303.3,2302.8,2.17201698]
[1770099035376,2.30742286,2303.3,2302.8,0.21733]
[1770099035578,0.0045645,2303.3,2302.8,0.21733]
[1770099035778,2.30285836,2303.6,2302.9,0.21732]
[1770099036682,2.30285836,2303.6,2303.0,0.21731]
[1770099037076,2.30285836,2303.4,2302.6,0.00558291]
[1770099037381,2.30285836,2303.4,2302.7,5.59395316]
[1770099037778,2.30612271,2303.4,2302.6,0.22292291]
[1770099038583,2.30285836,2303.2,2302.6,0.22292291]
[1770099038984,2.30285836,2303.0,2302.6,0.22292291]
[1770099040286,2.30285836,2302.8,2302.0,2.27887043]
[1770099040488,2.30285836,2302.8,2302.1,0.21739]
[1770099041384,2.30285836,2302.8,2302.1,0.22057291]
[1770099041885,2.30285836,2302.8,2302.1,2.2802274]
[1770099042085,2.30285836,2302.8,2302.2,5.59271332]
[1770099042490,2.30285836,2302.8,2302.1,0.22057291]
[1770099043283,2.30285836,2303.1,2302.5,0.21736]
[1770099044191,2.30612271,2303.4,2302.9,0.21732]
[1770099044888,0.00326435,2303.4,2302.9,0.21732]
[1770099045089,2.30285836,2303.7,2303.1,0.21729]
[1770099045492,7.29469025,2303.7,2303.1,0.21729]
[1770099046087,2.30285836,2303.6,2303.1,0.21729]
[1770099053099,1.86321836,2303.6,2303.3,0.21728]
[1770099053900,0.00403897,2303.7,2303.3,0.21728]
[1770099054092,0.00403897,2303.7,2302.9,5.77527665]
[1770099055902,2.49466769,2303.6,2302.9,5.77527665]
[1770099061298,2.49466769,2303.6,2302.9,5.55795665]
[1770099061501,0.00403897,2303.7,2303.2,2.75905398]
[1770099062506,2.43005601,2304.0,2303.2,2.75905398]
[1770099062705,2.43005601,2304.0,2303.3,0.21728]
[1770099063006,2.43005601,2303.9,2303.3,0.21728]
[1770099063306,2.43470861,2303.9,2303.3,0.21728]
[1770099064403,4.97100323,2304.2,2303.6,0.21725]
[1770099064600,2.43005601,2304.4,2303.7,0.21724]
[1770099065206,2.43005601,2304.5,2304.0,0.21721]
[1770099065399,2.43444586,2304.5,2304.0,0.21721]
[1770099065606,4.63338033,2304.6,2304.0,0.22047838]
[1770099065807,2.54094722,2304.8,2304.0,2.54503236]
[1770099066005,2.54094722,2305.0,2304.2,2.75895398]
[1770099066308,3.98139123,2305.0,2304.2,2.75895398]
[1770099066503,3.98139123,2304.9,2304.2,2.75895398]
[1770099066708,0.00457338,2305.0,2304.2,2.75895398]
[1770099066910,3.97779819,2304.9,2304.2,2.75895398]
[1770099067105,0.00457338,2305.0,2304.2,2.75895398]
[1770099067305,3.97768801,2304.9,2304.2,2.75895398]
[1770099067502,2.43462939,2305.0,2304.2,2.75895398]
[1770099067702,3.9750599,2304.9,2304.2,2.75895398]
[1770099067910,2.43462939,2305.0,2304.3,0.21718]
[1770099068212,2.43005601,2304.8,2304.0,0.00326838]
[1770099068414,2.43005601,2304.6,2303.7,0.21724]
[1770099068814,2.43005601,2304.4,2303.7,0.21724]
[1770099069112,2.43005601,2304.4,2303.7,2.75900398]
[1770099069506,2.43005601,2304.4,2303.7,0.00310865]
[1770099069711,2.43005601,2304.2,2303.6,3.04]
[1770099070113,4.85393891,2304.1,2303.2,0.21729]
[1770099070411,0.50952412,2304.0,2303.2,0.21729]
[1770099070605,0.50952412,2304.0,2303.2,0.2217212]
[1770099070809,4.70569253,2303.9,2303.2,0.2217212]
[1770099071416,5.20745473,2303.9,2303.2,0.2217212]
[1770099071813,4.47546096,2303.8,2303.2,0.0044312]
[1770099072007,0.5017622,2303.8,2303.2,0.0044312]
[1770099072210,4.77279804,2303.7,2303.2,0.0044312]
[1770099073615,4.77279804,2303.7,2303.2,2.54619518]
[1770099073915,0.47487822,2304.0,2303.2,2.54619518]
[1770099074116,3.97760522,2303.9,2303.2,2.54619518]
[1770099074316,0.47487822,2304.0,2303.2,2.54619518]
[1770099074517,2.54094722,2304.2,2303.3,5.58758152]
[1770099074717,38.27162844,2304.4,2303.4,2.54176398]
[1770099074718,3.97845301,2304.1,2303.4,2.54176398]
[1770099074913,3.97845301,2304.0,2303.4,2.54176398]
[1770099075109,4.57730226,2304.1,2303.4,2.54176398]
[1770099075308,3.97838594,2304.0,2303.4,2.54176398]
[1770099075614,4.66171026,2304.2,2303.4,2.54176398]
[1770099075915,3.97849939,2304.1,2303.4,2.54176398]
[1770099076112,2.54094722,2304.3,2303.4,2.54176398]
[1770099076311,3.5321965,2304.2,2303.7,2.75900398]
[1770099076508,0.3499828,2304.6,2303.7,2.75900398]
[1770099076818,0.3499828,2304.4,2303.5,2.54176398]
[1770099077013,3.97958718,2304.3,2303.5,2.54176398]
[1770099077217,4.61483156,2304.3,2303.5,2.54176398]
[1770099079715,4.61483156,2304.3,2303.5,2.75902398]
[1770099080114,4.98258333,2304.4,2303.5,2.75902398]
[1770099080317,2.54094722,2304.5,2303.5,2.75902398]
[1770099080318,3.97764027,2304.3,2303.5,2.75902398]
[1770099080516,0.30612117,2304.4,2303.5,2.75902398]
[1770099080816,3.9775714,2304.3,2303.5,2.75902398]
[1770099081018,5.24775203,2304.4,2303.5,2.75902398]
[1770099081217,3.97759992,2304.3,2303.5,2.75902398]
[1770099081418,0.30612117,2304.4,2303.5,2.75902398]
[1770099081718,3.97759946,2304.3,2303.5,2.75902398]
[1770099081919,0.30612117,2304.4,2303.5,2.75902398]
[1770099082118,3.97759879,2304.3,2303.5,2.75902398]
[1770099082413,0.31233916,2304.1,2303.2,2.52383273]
[1770099082621,3.97762011,2304.0,2303.2,2.52383273]
[1770099082919,4.63216657,2304.0,2303.4,2.51940153]
[1770099083114,2.54094722,2304.3,2303.4,2.51940153]
[1770099083320,6.51842624,2304.2,2303.4,2.51940153]
[1770099083520,8.72961584,2304.1,2303.4,2.51940153]
[1770099083720,3.97747902,2304.0,2303.4,2.51940153]
[1770099083919,2.88283528,2304.2,2303.4,2.51940153]
[1770099084122,3.97758404,2304.1,2303.4,2.51940153]
[1770099084322,3.97758404,2304.0,2303.4,2.51940153]
[1770099084520,4.75213682,2304.1,2303.4,2.51940153]
[1770099084717,3.97777277,2304.0,2303.4,2.51940153]
[1770099085016,4.58411984,2304.1,2303.4,2.51940153]
[1770099085220,3.9777403,2304.0,2303.4,2.51940153]
[1770099085421,4.58411984,2304.1,2303.4,2.51940153]
[1770099085621,3.9779395,2304.0,2303.4,2.51940153]
[1770099085822,2.88283528,2304.2,2303.4,2.51940153]
[1770099086025,8.88223067,2304.1,2303.4,2.51940153]
[1770099086223,3.97794152,2304.0,2303.4,2.51940153]
[1770099086919,2.88283528,2304.2,2303.4,2.51940153]
[1770099087124,3.97815315,2304.1,2303.5,0.21726]
[1770099087324,3.97815315,2304.0,2303.5,2.73666153]
[1770099087833,2.54094722,2304.2,2303.7,2.51940153]
[1770099088026,3.97902204,2304.1,2303.7,2.51940153]
[1770099088228,2.54094722,2304.3,2303.7,2.51940153]
[1770099088422,3.97923416,2304.3,2303.7,2.51940153]
[1770099088627,3.97923416,2304.4,2303.9,2.51940153]
[1770099089618,2.54094722,2304.6,2303.9,2.73662153]
[1770099089823,3.98036233,2304.5,2304.1,2.51940153]
[1770099090023,2.54094722,2304.8,2304.1,2.51940153]
[1770099090324,3.98045089,2304.7,2304.1,2.51940153]
[1770099090520,3.98045089,2304.6,2304.1,2.51940153]
[1770099090724,2.54094722,2304.8,2304.1,2.51940153]
[1770099090926,3.98021057,2304.7,2304.1,2.51940153]
[1770099091229,3.98021057,2304.6,2304.1,2.51940153]
[1770099091426,2.54094722,2304.8,2304.1,2.51940153]
[1770099091725,3.98013191,2304.7,2304.1,2.51940153]
[1770099091926,3.98013191,2304.6,2304.1,2.51940153]
[1770099092125,2.54094722,2304.8,2304.1,2.51940153]
[1770099092325,3.9800534,2304.7,2304.1,2.51940153]
[1770099092526,2.54094722,2304.9,2304.1,2.51940153]
[1770099092722,3.9801967,2304.8,2304.1,2.51940153]
[1770099092926,3.9801967,2304.7,2304.1,2.51940153]
[1770099093129,2.5455206,2305.0,2304.3,2.51940153]
[1770099093330,3.98049366,2304.9,2304.3,2.51940153]
[1770099093531,0.00457338,2305.0,2304.3,2.51940153]
[1770099093826,3.97962848,2304.9,2304.3,2.73658153]
[1770099094026,0.00457338,2305.0,2304.3,2.73658153]
[1770099095730,0.00457338,2305.0,2304.5,2.51940153]
[1770099095932,0.23791079,2305.5,2304.6,2.73655153]
[1770099096233,0.23791079,2305.3,2304.6,2.73655153]
[1770099096428,4.78814133,2305.2,2304.6,0.21715]